[Event "FIDE Grand Swiss 2023"]
[Site "Villa Marina, Douglas, Isle of Man"]
[Date "2023.10.30"]
[Round "6.32"]
[White "Matlakov, Maxim"]
[Black "Ter-Sahakyan, Samvel"]
[Result "0-1"]
[WhiteElo "2674"]
[BlackElo "2618"]
[EventDate "2023.10.25"]
[ECO "A20"]
[PlyCount "88"]
[BlackFideId "13302531"]
[TimeControl "40/100 + 20/50 + 15 + 30s/move"]
[WhiteFideId "4168003"]

1.c4 {[%clk 01:40:54] [%emt 00:00:05]} 1...e5 {[%clk 01:40:45] [%emt 00:00:15]} 
2.g3 {[%clk 01:40:21] [%emt 00:01:03]} 2...c6 {[%clk 01:40:52] [%emt 00:00:23]} 
3.Nf3 {[%clk 01:39:30] [%emt 00:01:22]} 3...e4 {[%clk 01:41:14] [%emt 00:00:07]} 
4.Nd4 {[%clk 01:39:54] [%emt 00:00:07]} 4...d5 {[%clk 01:41:26] [%emt 00:00:18]} 
5.cxd5 {[%clk 01:40:01] [%emt 00:00:23]} 5...Qxd5 {[%clk 01:41:51] [%emt
00:00:05]} 6.Nc2 {[%clk 01:40:10] [%emt 00:00:20]} 6...Nf6 {[%clk 01:42:15]
[%emt 00:00:06]} 7.Nc3 {[%clk 01:40:13] [%emt 00:00:28]} 7...Qe5 {[%clk
01:42:35] [%emt 00:00:10]} 8.Bg2 {[%clk 01:40:20] [%emt 00:00:22]} 8...Na6 
{[%clk 01:42:54] [%emt 00:00:11]} 9.Rb1 {[%clk 01:40:27] [%emt 00:00:24]} 
9...h5 {[%clk 01:23:31] [%emt 00:19:52]} 10.d4 {[%clk 01:39:52] [%emt 00:01:05]} 
10...exd3 {[%clk 01:18:16] [%emt 00:05:46]} 11.Qxd3 {[%clk 01:40:11] [%emt
00:00:10]} 11...Nb4 {[%clk 00:55:24] [%emt 00:23:22]} 12.Nxb4 {[%clk 01:39:24]
[%emt 00:01:18]} 12...Bxb4 {[%clk 00:55:52] [%emt 00:00:02]} 13.Bf4 {[%clk
01:39:31] [%emt 00:00:23]} 13...Qf5 {[%clk 00:43:21] [%emt 00:13:00]} 14.e4 
{[%clk 01:36:40] [%emt 00:03:22]} 14...Qd7 {[%clk 00:42:05] [%emt 00:01:45]} 
15.Qc2 {[%clk 01:27:08] [%emt 00:10:03]} 15...h4 {[%clk 00:40:25] [%emt
00:02:10]} 16.gxh4 {[%clk 01:15:15] [%emt 00:12:22]} 16...Rxh4 {[%clk 00:37:28]
[%emt 00:03:27]} 17.Bg3 {[%clk 01:14:34] [%emt 00:01:11]} 17...Rh6 {[%clk
00:37:42] [%emt 00:00:16]} 18.O-O {[%clk 01:12:23] [%emt 00:02:41]} 18...Nh5 
{[%clk 00:35:18] [%emt 00:02:55]} 19.Qa4 {[%clk 00:52:38] [%emt 00:20:15]} 
19...Bc5 {[%clk 00:23:37] [%emt 00:12:10]} 20.Qc4 {[%clk 00:11:51] [%emt
00:41:17]} 20...Nxg3 {[%clk 00:17:51] [%emt 00:06:17]} 21.hxg3 {[%clk 00:12:19]
[%emt 00:00:02]} 21...Bb6 {[%clk 00:18:13] [%emt 00:00:07]} 22.Na4 {[%clk
00:10:46] [%emt 00:02:04]} 22...Bc7 {[%clk 00:15:08] [%emt 00:03:34]} 23.Qe2 
{[%clk 00:05:41] [%emt 00:05:35]} 23...Qd4 {[%clk 00:14:42] [%emt 00:00:56]} 
24.b4 {[%clk 00:04:51] [%emt 00:01:21]} 24...Bxg3 {[%clk 00:13:02] [%emt
00:02:09]} 25.Rfd1 {[%clk 00:05:20] [%emt 00:00:01]} 25...Bh2+ {[%clk 00:13:10]
[%emt 00:00:23]} 26.Kf1 {[%clk 00:05:49] [%emt 00:00:01]} 26...Qe5 {[%clk
00:11:45] [%emt 00:01:53]} 27.b5 {[%clk 00:06:15] [%emt 00:00:05]} 27...Rf6 
{[%clk 00:10:12] [%emt 00:02:03]} 28.Nb2 {[%clk 00:04:43] [%emt 00:02:02]} 
28...Qg5 {[%clk 00:09:06] [%emt 00:01:36]} 29.Qd2 {[%clk 00:01:57] [%emt
00:03:16]} 29...Qxd2 {[%clk 00:05:32] [%emt 00:04:03]} 30.Rxd2 {[%clk 00:02:26]
[%emt 00:00:02]} 30...cxb5 {[%clk 00:05:49] [%emt 00:00:13]} 31.Nd3 {[%clk
00:02:18] [%emt 00:00:37]} 31...Rb6 {[%clk 00:04:41] [%emt 00:01:38]} 32.Nb4 
{[%clk 00:01:23] [%emt 00:01:25]} 32...Bf4 {[%clk 00:03:48] [%emt 00:01:22]} 
33.Rd3 {[%clk 00:01:13] [%emt 00:00:42]} 33...Be6 {[%clk 00:01:52] [%emt
00:02:25]} 34.Nd5 {[%clk 00:01:41] [%emt 00:00:02]} 34...Bxd5 {[%clk 00:02:11]
[%emt 00:00:11]} 35.Rxd5 {[%clk 00:02:10]} 35...b4 {[%clk 00:02:23] [%emt
00:00:18]} 36.e5 {[%clk 00:00:50] [%emt 00:01:51]} 36...Rd8 {[%clk 00:01:31]
[%emt 00:01:21]} 37.Rc5 {[%clk 00:00:56] [%emt 00:00:25]} 37...g5 {[%clk
00:00:58] [%emt 00:01:02]} 38.Rc7 {[%clk 00:00:37] [%emt 00:00:49]} 38...Rd2 
{[%clk 00:01:05] [%emt 00:00:24]} 39.Bxb7 {[%clk 00:00:43] [%emt 00:00:24]} 
39...Bxe5 {[%clk 00:01:00] [%emt 00:00:34]} 40.Re1 {[%clk 00:01:12] [%emt
00:00:02]} 40...f6 {[%clk 00:00:47] [%emt 00:00:42]} 41.Rh7 {[%clk 00:42:03]
[%emt 00:09:39]} 41...Rxa2 {[%clk 00:41:48] [%emt 00:09:30]} 42.Kg2 {[%clk
00:42:23] [%emt 00:00:09]} 42...Rd6 {[%clk 00:39:03] [%emt 00:03:15]} 43.Rc1 
{[%clk 00:40:01] [%emt 00:02:52]} 43...Bc3 {[%clk 00:38:36] [%emt 00:00:57]} 
44.Rch1 {[%clk 00:40:25] [%emt 00:00:07]} 44...Kd8 {[%clk 00:35:37] [%emt
00:03:28]} 0-1

[Event "FIDE Grand Swiss 2023"]
[Site "Villa Marina, Douglas, Isle of Man"]
[Date "2023.10.30"]
[Round "6.33"]
[White "Anton Guijarro, David"]
[Black "Maurizzi, Marc`andria"]
[Result "1-0"]
[WhiteElo "2653"]
[BlackElo "2555"]
[EventDate "2023.10.25"]
[ECO "D30"]
[PlyCount "87"]
[BlackFideId "36083534"]
[TimeControl "40/100 + 20/50 + 15 + 30s/move"]
[WhiteFideId "2285525"]

1.d4 {[%clk 01:40:54] [%emt 00:00:05]} 1...d5 {[%clk 01:40:40] [%emt 00:00:22]} 
2.c4 {[%clk 01:41:08] [%emt 00:00:15]} 2...e6 {[%clk 01:40:50] [%emt 00:00:20]} 
3.Nf3 {[%clk 01:41:05] [%emt 00:00:33]} 3...Nf6 {[%clk 01:41:13] [%emt
00:00:08]} 4.Nc3 {[%clk 01:41:09] [%emt 00:00:25]} 4...a6 {[%clk 01:40:16] [%emt
00:01:27]} 5.cxd5 {[%clk 01:40:55] [%emt 00:00:43]} 5...exd5 {[%clk 01:40:11]
[%emt 00:00:36]} 6.Bg5 {[%clk 01:41:18] [%emt 00:00:07]} 6...Be6 {[%clk
01:40:38] [%emt 00:00:03]} 7.e3 {[%clk 01:41:13] [%emt 00:00:34]} 7...Nbd7 
{[%clk 01:40:58] [%emt 00:00:11]} 8.h3 {[%clk 01:40:54] [%emt 00:00:49]} 8...c6 
{[%clk 01:40:22] [%emt 00:01:05]} 9.Bd3 {[%clk 01:39:14] [%emt 00:02:11]} 
9...Bd6 {[%clk 01:40:02] [%emt 00:00:50]} 10.Bf4 {[%clk 01:38:51] [%emt
00:00:53]} 10...Qc7 {[%clk 01:40:28] [%emt 00:00:04]} 11.Bxd6 {[%clk 01:39:13]
[%emt 00:00:08]} 11...Qxd6 {[%clk 01:40:55] [%emt 00:00:04]} 12.O-O {[%clk
01:39:24] [%emt 00:00:18]} 12...O-O {[%clk 01:40:50] [%emt 00:00:34]} 13.a3 
{[%clk 01:39:41] [%emt 00:00:14]} 13...a5 {[%clk 01:37:40] [%emt 00:03:40]} 
14.Qc2 {[%clk 01:35:36] [%emt 00:04:35]} 14...Rfe8 {[%clk 01:36:26] [%emt
00:01:44]} 15.Rfc1 {[%clk 01:32:30] [%emt 00:03:36]} 15...Rac8 {[%clk 01:28:09]
[%emt 00:08:47]} 16.Na4 {[%clk 01:09:35] [%emt 00:23:25]} 16...Ne4 {[%clk
01:17:34] [%emt 00:11:05]} 17.Bxe4 {[%clk 01:07:06] [%emt 00:02:59]} 17...dxe4 
{[%clk 01:17:47] [%emt 00:00:17]} 18.Nd2 {[%clk 01:07:02] [%emt 00:00:33]} 
18...Bf5 {[%clk 01:16:02] [%emt 00:02:16]} 19.Nf1 {[%clk 00:37:34] [%emt
00:29:59]} 19...b6 {[%clk 01:10:22] [%emt 00:06:09]} 20.b4 {[%clk 00:37:31]
[%emt 00:00:32]} 20...axb4 {[%clk 01:08:33] [%emt 00:02:19]} 21.axb4 {[%clk
00:37:58] [%emt 00:00:04]} 21...h5 {[%clk 01:05:59] [%emt 00:03:03]} 22.Ng3 
{[%clk 00:37:58] [%emt 00:00:30]} 22...Bg6 {[%clk 01:06:23] [%emt 00:00:05]} 
23.Qb3 {[%clk 00:37:25] [%emt 00:01:04]} 23...Ra8 {[%clk 00:57:50] [%emt
00:09:03]} 24.Nc3 {[%clk 00:36:11] [%emt 00:01:43]} 24...Nf6 {[%clk 00:55:19]
[%emt 00:03:02]} 25.Rxa8 {[%clk 00:29:01] [%emt 00:07:41]} 25...Rxa8 {[%clk
00:55:47] [%emt 00:00:02]} 26.b5 {[%clk 00:28:46] [%emt 00:00:45]} 26...cxb5 
{[%clk 00:36:46] [%emt 00:19:32]} 27.Nxb5 {[%clk 00:28:04] [%emt 00:01:12]} 
27...Qd7 {[%clk 00:37:15] [%emt 00:00:01]} 28.Nc3 {[%clk 00:22:19] [%emt
00:06:14]} 28...h4 {[%clk 00:30:16] [%emt 00:07:29]} 29.Nge2 {[%clk 00:22:42]
[%emt 00:00:08]} 29...Bf5 {[%clk 00:29:54] [%emt 00:00:52]} 30.Nf4 {[%clk
00:22:11] [%emt 00:01:00]} 30...Rc8 {[%clk 00:06:55] [%emt 00:23:28]} 31.Qxb6 
{[%clk 00:18:00] [%emt 00:04:43]} 31...Kh7 {[%clk 00:06:25] [%emt 00:01:00]} 
32.Qa5 {[%clk 00:15:40] [%emt 00:02:50]} 32...g5 {[%clk 00:02:48] [%emt
00:04:05]} 33.Qe5 {[%clk 00:13:40] [%emt 00:02:31]} 33...Rc6 {[%clk 00:01:48]
[%emt 00:02:03]} 34.d5 {[%clk 00:14:02] [%emt 00:00:36]} 34...Ra6 {[%clk
00:01:58] [%emt 00:00:19]} 35.Nfe2 {[%clk 00:10:14] [%emt 00:04:18]} 35...Kg6 
{[%clk 00:00:53] [%emt 00:01:35]} 36.Nd4 {[%clk 00:09:58] [%emt 00:00:46]} 
36...Ra8 {[%clk 00:01:09] [%emt 00:00:14]} 37.Nc6 {[%clk 00:04:57] [%emt
00:05:31]} 37...Re8 {[%clk 00:01:25] [%emt 00:00:15]} 38.Qd4 {[%clk 00:04:11]
[%emt 00:01:16]} 38...Kg7 {[%clk 00:00:34] [%emt 00:01:21]} 39.Ne5 {[%clk
00:03:17] [%emt 00:01:23]} 39...Qe7 {[%clk 00:00:40] [%emt 00:00:23]} 40.Nc4 
{[%clk 00:03:02] [%emt 00:00:47]} 40...Kg6 {[%clk 00:00:33] [%emt 00:00:36]} 
41.Ra1 {[%clk 00:48:28] [%emt 00:05:04]} 41...g4 {[%clk 00:47:37] [%emt
00:03:27]} 42.Ra7 {[%clk 00:45:23] [%emt 00:03:34]} 42...Bd7 {[%clk 00:46:51]
[%emt 00:01:16]} 43.Ra6 {[%clk 00:43:20] [%emt 00:02:33]} 43...Kg5 {[%clk
00:46:14] [%emt 00:01:06]} 44.Nd6 {[%clk 00:42:43] [%emt 00:01:07]} 1-0

[Event "FIDE Grand Swiss 2023"]
[Site "Villa Marina, Douglas, Isle of Man"]
[Date "2023.10.30"]
[Round "6.34"]
[White "Mareco, Sandro"]
[Black "Pichot, Alan"]
[Result "1/2-1/2"]
[WhiteElo "2606"]
[BlackElo "2650"]
[EventDate "2023.10.25"]
[ECO "E10"]
[PlyCount "94"]
[BlackFideId "110973"]
[TimeControl "40/100 + 20/50 + 15 + 30s/move"]
[WhiteFideId "112275"]

1.d4 {[%clk 01:40:58] [%emt 00:00:01]} 1...Nf6 {[%clk 01:40:39] [%emt 00:00:21]} 
2.c4 {[%clk 01:41:25] [%emt 00:00:04]} 2...e6 {[%clk 01:41:01] [%emt 00:00:08]} 
3.Nf3 {[%clk 01:41:49] [%emt 00:00:07]} 3...a6 {[%clk 01:41:13] [%emt 00:00:16]} 
4.Nc3 {[%clk 01:41:33] [%emt 00:00:46]} 4...d5 {[%clk 01:41:34] [%emt 00:00:09]} 
5.cxd5 {[%clk 01:42:00] [%emt 00:00:04]} 5...exd5 {[%clk 01:41:57] [%emt
00:00:07]} 6.Bg5 {[%clk 01:42:20] [%emt 00:00:09]} 6...Be6 {[%clk 01:42:03]
[%emt 00:00:24]} 7.e3 {[%clk 01:42:37] [%emt 00:00:13]} 7...Nbd7 {[%clk
01:41:33] [%emt 00:01:00]} 8.Bd3 {[%clk 01:41:50] [%emt 00:01:17]} 8...Bd6 
{[%clk 01:40:34] [%emt 00:01:29]} 9.h3 {[%clk 01:42:01] [%emt 00:00:19]} 9...c6 
{[%clk 01:39:51] [%emt 00:01:13]} 10.Bf4 {[%clk 01:42:20] [%emt 00:00:10]} 
10...Qc7 {[%clk 01:39:01] [%emt 00:01:20]} 11.Qd2 {[%clk 01:42:46] [%emt
00:00:05]} 11...O-O {[%clk 01:39:07] [%emt 00:00:24]} 12.O-O {[%clk 01:42:44]
[%emt 00:00:33]} 12...Rfe8 {[%clk 01:35:34] [%emt 00:04:02]} 13.Bxd6 {[%clk
01:35:18] [%emt 00:07:56]} 13...Qxd6 {[%clk 01:35:45] [%emt 00:00:19]} 14.Rac1 
{[%clk 01:35:37] [%emt 00:00:10]} 14...Nb6 {[%clk 01:28:01] [%emt 00:08:15]} 
15.Qc2 {[%clk 01:33:27] [%emt 00:02:40]} 15...Qe7 {[%clk 01:20:12] [%emt
00:08:19]} 16.Rfe1 {[%clk 01:29:57] [%emt 00:03:59]} 16...g6 {[%clk 01:18:25]
[%emt 00:02:17]} 17.Ne5 {[%clk 00:55:27] [%emt 00:35:01]} 17...Nc8 {[%clk
01:16:16] [%emt 00:02:39]} 18.f3 {[%clk 00:45:04] [%emt 00:10:53]} 18...Nh5 
{[%clk 01:08:24] [%emt 00:08:22]} 19.Rcd1 {[%clk 00:37:11] [%emt 00:08:23]} 
19...Nd6 {[%clk 01:06:34] [%emt 00:02:21]} 20.Qf2 {[%clk 00:34:12] [%emt
00:03:28]} 20...Rad8 {[%clk 00:59:34] [%emt 00:07:29]} 21.Bb1 {[%clk 00:34:33]
[%emt 00:00:10]} 21...f6 {[%clk 00:41:08] [%emt 00:18:56]} 22.Nd3 {[%clk
00:34:51] [%emt 00:00:12]} 22...f5 {[%clk 00:40:26] [%emt 00:01:12]} 23.Ne2 
{[%clk 00:33:34] [%emt 00:01:47]} 23...Bc8 {[%clk 00:37:01] [%emt 00:03:55]} 
24.Nef4 {[%clk 00:33:47] [%emt 00:00:17]} 24...Qg5 {[%clk 00:34:18] [%emt
00:03:12]} 25.a3 {[%clk 00:31:56] [%emt 00:02:22]} 25...Re7 {[%clk 00:33:50]
[%emt 00:00:58]} 26.Ba2 {[%clk 00:31:40] [%emt 00:00:46]} 26...Kh8 {[%clk
00:31:09] [%emt 00:03:11]} 27.Ne5 {[%clk 00:17:27] [%emt 00:14:43]} 27...Rde8 
{[%clk 00:29:52] [%emt 00:01:47]} 28.Qd2 {[%clk 00:17:50] [%emt 00:00:07]} 
28...Qh6 {[%clk 00:25:16] [%emt 00:05:06]} 29.Nxh5 {[%clk 00:11:35] [%emt
00:06:45]} 29...Qxh5 {[%clk 00:21:53] [%emt 00:03:54]} 30.Re2 {[%clk 00:11:51]
[%emt 00:00:14]} 30...g5 {[%clk 00:11:29] [%emt 00:10:54]} 31.Rf2 {[%clk
00:12:05] [%emt 00:00:16]} 31...Nf7 {[%clk 00:10:57] [%emt 00:01:01]} 32.Nxf7+ 
{[%clk 00:12:22] [%emt 00:00:13]} 32...Rxf7 {[%clk 00:11:02] [%emt 00:00:26]} 
33.Re1 {[%clk 00:12:41] [%emt 00:00:10]} 33...Rfe7 {[%clk 00:09:47] [%emt
00:01:45]} 34.e4 {[%clk 00:09:16] [%emt 00:03:56]} 34...g4 {[%clk 00:09:12]
[%emt 00:01:04]} 35.fxg4 {[%clk 00:08:51] [%emt 00:00:55]} 35...fxg4 {[%clk
00:09:37] [%emt 00:00:05]} 36.hxg4 {[%clk 00:08:43] [%emt 00:00:38]} 36...Bxg4 
{[%clk 00:08:37] [%emt 00:01:31]} 37.Qb4 {[%clk 00:04:58] [%emt 00:04:14]} 
37...dxe4 {[%clk 00:03:15] [%emt 00:05:51]} 38.Ref1 {[%clk 00:04:34] [%emt
00:00:55]} 38...Bf3 {[%clk 00:03:39] [%emt 00:00:07]} 39.gxf3 {[%clk 00:02:52]
[%emt 00:02:12]} 39...Rg7+ {[%clk 00:00:38] [%emt 00:03:30]} 40.Rg2 {[%clk
00:03:04] [%emt 00:00:18]} 40...Rxg2+ {[%clk 00:00:39] [%emt 00:00:29]} 41.Kxg2 
{[%clk 00:03:31] [%emt 00:00:03]} 41...Qg5+ {[%clk 00:42:40] [%emt 00:08:28]} 
42.Kh3 {[%clk 00:42:31] [%emt 00:11:31]} 42...Re7 {[%clk 00:25:05] [%emt
00:18:05]} 43.Qd6 {[%clk 00:36:13] [%emt 00:06:47]} 43...Qh5+ {[%clk 00:23:47]
[%emt 00:01:48]} 44.Kg3 {[%clk 00:36:33] [%emt 00:00:10]} 44...Rg7+ {[%clk
00:23:32] [%emt 00:00:45]} 45.Kf2 {[%clk 00:36:50] [%emt 00:00:14]} 45...Qxf3+ 
{[%clk 00:23:55] [%emt 00:00:06]} 46.Ke1 {[%clk 00:37:17] [%emt 00:00:03]} 
46...Qe3+ {[%clk 00:24:19] [%emt 00:00:07]} 47.Kd1 {[%clk 00:37:44] [%emt
00:00:03]} 47...Qd3+ {[%clk 00:24:12] [%emt 00:00:06]} 1/2-1/2

[Event "FIDE Grand Swiss 2023"]
[Site "Villa Marina, Douglas, Isle of Man"]
[Date "2023.10.30"]
[Round "6.35"]
[White "Mishra, Abhimanyu"]
[Black "Ponomariov, Ruslan"]
[Result "1/2-1/2"]
[WhiteElo "2592"]
[BlackElo "2641"]
[EventDate "2023.10.25"]
[ECO "C54"]
[PlyCount "59"]
[BlackFideId "14103320"]
[TimeControl "40/100 + 20/50 + 15 + 30s/move"]
[WhiteFideId "30920019"]

1.e4 {[%clk 01:40:59] [%emt 00:00:01]} 1...e5 {[%clk 01:40:47] [%emt 00:00:13]} 
2.Nf3 {[%clk 01:41:19] [%emt 00:00:09]} 2...Nc6 {[%clk 01:41:02] [%emt
00:00:15]} 3.Bc4 {[%clk 01:41:35] [%emt 00:00:14]} 3...Nf6 {[%clk 01:41:19]
[%emt 00:00:13]} 4.d3 {[%clk 01:41:48] [%emt 00:00:18]} 4...Bc5 {[%clk 01:41:34]
[%emt 00:00:14]} 5.c3 {[%clk 01:42:00] [%emt 00:00:19]} 5...d6 {[%clk 01:41:25]
[%emt 00:00:38]} 6.O-O {[%clk 01:42:07] [%emt 00:00:23]} 6...a5 {[%clk 01:41:35]
[%emt 00:00:20]} 7.Re1 {[%clk 01:41:51] [%emt 00:00:46]} 7...Ba7 {[%clk
01:41:38] [%emt 00:00:28]} 8.Na3 {[%clk 01:41:08] [%emt 00:01:13]} 8...h6 
{[%clk 01:41:47] [%emt 00:00:19]} 9.Nb5 {[%clk 01:40:27] [%emt 00:01:13]} 
9...Bb6 {[%clk 01:42:09] [%emt 00:00:08]} 10.Be3 {[%clk 01:40:28] [%emt
00:00:29]} 10...Bxe3 {[%clk 01:42:30] [%emt 00:00:08]} 11.Rxe3 {[%clk 01:40:52]
[%emt 00:00:06]} 11...O-O {[%clk 01:42:54] [%emt 00:00:07]} 12.a4 {[%clk
01:39:35] [%emt 00:01:47]} 12...Re8 {[%clk 01:23:13] [%emt 00:20:10]} 13.Qb3 
{[%clk 01:34:45] [%emt 00:05:20]} 13...Be6 {[%clk 01:19:32] [%emt 00:04:10]} 
14.Bxe6 {[%clk 01:33:46] [%emt 00:01:30]} 14...Rxe6 {[%clk 01:19:59] [%emt
00:00:04]} 15.d4 {[%clk 01:32:09] [%emt 00:02:08]} 15...Re8 {[%clk 01:15:07]
[%emt 00:05:21]} 16.Rae1 {[%clk 01:19:05] [%emt 00:13:34]} 16...g6 {[%clk
01:01:25] [%emt 00:14:12]} 17.h3 {[%clk 01:15:15] [%emt 00:04:20]} 17...Kg7 
{[%clk 01:01:27] [%emt 00:00:28]} 18.dxe5 {[%clk 01:11:29] [%emt 00:04:16]} 
18...dxe5 {[%clk 00:54:33] [%emt 00:07:24]} 19.Rd1 {[%clk 01:01:07] [%emt
00:10:53]} 19...Qe7 {[%clk 00:54:15] [%emt 00:00:47]} 20.Na3 {[%clk 01:01:30]
[%emt 00:00:07]} 20...b6 {[%clk 00:52:35] [%emt 00:02:10]} 21.Qc4 {[%clk
00:44:45] [%emt 00:17:15]} 21...Rad8 {[%clk 00:46:31] [%emt 00:06:33]} 22.Rxd8 
{[%clk 00:40:48] [%emt 00:04:27]} 22...Nxd8 {[%clk 00:46:32] [%emt 00:00:29]} 
23.b4 {[%clk 00:40:33] [%emt 00:00:46]} 23...Nb7 {[%clk 00:43:32] [%emt
00:03:29]} 24.Qc6 {[%clk 00:34:38] [%emt 00:06:24]} 24...Nd6 {[%clk 00:43:11]
[%emt 00:00:51]} 25.bxa5 {[%clk 00:32:57] [%emt 00:02:12]} 25...bxa5 {[%clk
00:42:59] [%emt 00:00:43]} 26.Nb5 {[%clk 00:31:54] [%emt 00:01:33]} 26...Rb8 
{[%clk 00:30:05] [%emt 00:13:24]} 27.Qc5 {[%clk 00:27:19] [%emt 00:05:04]} 
27...Re8 {[%clk 00:28:03] [%emt 00:02:32]} 28.Qc6 {[%clk 00:23:47] [%emt
00:04:03]} 28...Rb8 {[%clk 00:28:16] [%emt 00:00:17]} 29.Qc5 {[%clk 00:21:18]
[%emt 00:02:59]} 29...Re8 {[%clk 00:28:22] [%emt 00:00:24]} 30.Qc6 {[%clk
00:18:51] [%emt 00:02:56]} 1/2-1/2

[Event "FIDE Grand Swiss 2023"]
[Site "Villa Marina, Douglas, Isle of Man"]
[Date "2023.10.30"]
[Round "6.36"]
[White "Gukesh, D"]
[Black "Suleymanli, Aydin"]
[Result "0-1"]
[WhiteElo "2758"]
[BlackElo "2588"]
[EventDate "2023.10.25"]
[ECO "D02"]
[PlyCount "86"]
[BlackFideId "13413937"]
[TimeControl "40/100 + 20/50 + 15 + 30s/move"]
[WhiteFideId "46616543"]

1.d4 {[%clk 01:40:55] [%emt 00:00:05]} 1...Nf6 {[%clk 01:40:55] [%emt 00:00:05]} 
2.Bf4 {[%clk 01:40:38] [%emt 00:00:47]} 2...d5 {[%clk 01:40:54] [%emt 00:00:32]} 
3.e3 {[%clk 01:40:48] [%emt 00:00:20]} 3...c5 {[%clk 01:40:52] [%emt 00:00:32]} 
4.c3 {[%clk 01:40:48] [%emt 00:00:29]} 4...e6 {[%clk 01:40:01] [%emt 00:01:22]} 
5.Nf3 {[%clk 01:40:36] [%emt 00:00:42]} 5...Bd6 {[%clk 01:38:57] [%emt
00:01:34]} 6.Nbd2 {[%clk 01:39:25] [%emt 00:01:41]} 6...O-O {[%clk 01:36:40]
[%emt 00:02:47]} 7.Ne5 {[%clk 01:34:51] [%emt 00:05:04]} 7...c4 {[%clk 01:35:24]
[%emt 00:01:46]} 8.Bg5 {[%clk 01:26:57] [%emt 00:08:24]} 8...Nbd7 {[%clk
01:32:25] [%emt 00:03:29]} 9.f4 {[%clk 01:25:08] [%emt 00:02:18]} 9...Qc7 
{[%clk 01:30:42] [%emt 00:02:14]} 10.a4 {[%clk 01:21:48] [%emt 00:03:50]} 
10...Ne8 {[%clk 01:28:30] [%emt 00:02:42]} 11.Bh4 {[%clk 01:21:26] [%emt
00:00:52]} 11...f6 {[%clk 01:27:12] [%emt 00:01:48]} 12.Ng4 {[%clk 01:14:31]
[%emt 00:07:24]} 12...e5 {[%clk 01:20:05] [%emt 00:07:38]} 13.g3 {[%clk
00:59:20] [%emt 00:15:40]} 13...exd4 {[%clk 01:14:43] [%emt 00:05:52]} 14.exd4 
{[%clk 00:54:09] [%emt 00:05:42]} 14...g5 {[%clk 01:14:27] [%emt 00:00:46]} 
15.Ne3 {[%clk 00:51:36] [%emt 00:03:02]} 15...gxh4 {[%clk 01:14:22] [%emt
00:00:36]} 16.Nxd5 {[%clk 00:51:59] [%emt 00:00:07]} 16...Qd8 {[%clk 01:10:02]
[%emt 00:04:50]} 17.Bxc4 {[%clk 00:49:37] [%emt 00:02:53]} 17...Kh8 {[%clk
01:09:48] [%emt 00:00:43]} 18.Ne3 {[%clk 00:49:23] [%emt 00:00:44]} 18...Ng7 
{[%clk 01:06:23] [%emt 00:03:55]} 19.Nf3 {[%clk 00:46:04] [%emt 00:03:49]} 
19...h3 {[%clk 00:59:01] [%emt 00:07:51]} 20.O-O {[%clk 00:41:00] [%emt
00:05:34]} 20...b6 {[%clk 00:52:38] [%emt 00:06:53]} 21.Bd5 {[%clk 00:39:05]
[%emt 00:02:26]} 21...Rb8 {[%clk 00:52:54] [%emt 00:00:14]} 22.Qd3 {[%clk
00:37:25] [%emt 00:02:10]} 22...Re8 {[%clk 00:51:37] [%emt 00:01:47]} 23.Nc4 
{[%clk 00:26:53] [%emt 00:11:02]} 23...Nf8 {[%clk 00:47:20] [%emt 00:04:47]} 
24.Be4 {[%clk 00:21:10] [%emt 00:06:13]} 24...Bb7 {[%clk 00:43:24] [%emt
00:04:26]} 25.Rfe1 {[%clk 00:17:50] [%emt 00:03:50]} 25...Bxe4 {[%clk 00:38:21]
[%emt 00:05:33]} 26.Rxe4 {[%clk 00:18:18] [%emt 00:00:02]} 26...Qd7 {[%clk
00:37:51] [%emt 00:01:00]} 27.Rae1 {[%clk 00:14:55] [%emt 00:03:53]} 27...Rxe4 
{[%clk 00:36:25] [%emt 00:01:56]} 28.Rxe4 {[%clk 00:15:03] [%emt 00:00:21]} 
28...Bc7 {[%clk 00:36:40] [%emt 00:00:15]} 29.b3 {[%clk 00:14:29] [%emt
00:01:05]} 29...Ng6 {[%clk 00:36:20] [%emt 00:00:49]} 30.Kf2 {[%clk 00:13:44]
[%emt 00:01:16]} 30...Nf5 {[%clk 00:33:52] [%emt 00:02:58]} 31.Ncd2 {[%clk
00:11:03] [%emt 00:03:11]} 31...Nd6 {[%clk 00:24:18] [%emt 00:10:03]} 32.Re1 
{[%clk 00:10:51] [%emt 00:00:42]} 32...Qg4 {[%clk 00:23:11] [%emt 00:01:36]} 
33.Ke2 {[%clk 00:06:36] [%emt 00:04:46]} 33...h5 {[%clk 00:14:59] [%emt
00:08:42]} 34.Kd1 {[%clk 00:06:56] [%emt 00:00:09]} 34...h4 {[%clk 00:15:14]
[%emt 00:00:17]} 35.Kc2 {[%clk 00:04:20] [%emt 00:03:06]} 35...hxg3 {[%clk
00:15:21] [%emt 00:00:23]} 36.hxg3 {[%clk 00:04:49] [%emt 00:00:01]} 36...Kg7 
{[%clk 00:11:27] [%emt 00:04:23]} 37.Nf1 {[%clk 00:05:08] [%emt 00:00:11]} 
37...Kf7 {[%clk 00:02:48] [%emt 00:09:10]} 38.Nh4 {[%clk 00:05:15] [%emt
00:00:23]} 38...Rg8 {[%clk 00:02:59] [%emt 00:00:19]} 39.Nh2 {[%clk 00:03:50]
[%emt 00:01:55]} 39...Qh5 {[%clk 00:03:27] [%emt 00:00:02]} 40.N2f3 {[%clk
00:00:41] [%emt 00:03:39]} 40...Nxh4 {[%clk 00:02:38] [%emt 00:01:19]} 41.Nxh4 
{[%clk 00:01:04] [%emt 00:00:07]} 41...Re8 {[%clk 00:00:52] [%emt 00:02:15]} 
42.Rxe8 {[%clk 00:43:05] [%emt 00:08:30]} 42...Kxe8 {[%clk 00:50:39] [%emt
00:00:42]} 43.Qf1 {[%clk 00:41:38] [%emt 00:01:57]} 43...Qg4 {[%clk 00:50:52]
[%emt 00:00:17]} 0-1